fUSD/lending_fUSD_20250618
["ID","MTS","AMOUNT","RATE_DAILY","PERIOD"]
[366391339,1750228262620,-490.0,0.00016767,2]
[366391340,1750228262629,-490.0,0.00016767,2]
[366391341,1750228262639,-490.0,0.00016767,2]
[366391342,1750228262648,-490.0,0.00016767,2]
[366391343,1750228262658,-490.0,0.00016767,2]
[366391344,1750228262668,-340.61,0.00016767,2]
[366391345,1750228262678,-498.45,0.00016767,2]
[366391346,1750228262688,-490.0,0.00016767,2]
[366391347,1750228262698,-632.37,0.00016767,2]
[366391348,1750228262707,-490.0,0.00016767,2]
[366391349,1750228262716,-490.0,0.00016767,2]
[366391350,1750228262726,-490.0,0.00016767,2]
[366391351,1750228262735,-275.08436073,0.00016767,2]
[366391352,1750228262745,-490.0,0.00016767,2]
[366391353,1750228262754,-728.74,0.00016767,2]
[366391354,1750228262763,-985.73,0.00016767,2]
[366391355,1750228262772,-490.0,0.00016767,2]
[366391356,1750228262782,-490.0,0.00016767,2]
[366391357,1750228262792,-490.0,0.00016767,2]
[366391358,1750228262801,-518.23,0.00016767,2]
[366391359,1750228262810,-490.0,0.00016767,2]
[366391360,1750228262819,-490.0,0.00016767,2]
[366391361,1750228262831,-490.0,0.00016767,2]
[366391362,1750228262840,-490.0,0.00016767,2]
[366391363,1750228262850,-490.0,0.00016767,2]
[366391364,1750228262859,-537.07,0.00016767,2]
[366391365,1750228262869,-490.0,0.00016767,2]
[366391366,1750228262878,-490.0,0.00016767,2]
[366391367,1750228262888,-490.0,0.00016767,2]
[366391368,1750228262897,-490.0,0.00016767,2]
[366391369,1750228262907,-490.0,0.00016767,2]
[366391370,1750228262917,-490.0,0.00016767,2]
[366391371,1750228262927,-608.7,0.00016767,2]
[366391372,1750228262942,-490.0,0.00016767,2]
[366391373,1750228262951,-1486.82,0.00016767,2]
[366391374,1750228262960,-490.0,0.00016767,2]
[366391375,1750228262970,-490.0,0.00016767,2]
[366391376,1750228262980,-490.0,0.00016767,2]
[366391377,1750228262990,-592.13,0.00016767,2]
[366391378,1750228263000,-437.19125681,0.00016767,2]
[366391379,1750228263009,-490.0,0.00016767,2]
[366391380,1750228263019,-490.0,0.00016767,2]
[366391381,1750228263029,-490.0,0.00016767,2]
[366391382,1750228263039,-490.0,0.00016767,2]
[366391383,1750228263049,-490.0,0.00016767,2]
[366391384,1750228263059,-331.86,0.00016767,2]
[366391385,1750228263070,-490.0,0.00016767,2]
[366391386,1750228263080,-605.41,0.00016767,2]
[366391387,1750228263092,-517.99,0.00016767,2]
[366391388,1750228263103,-490.0,0.00016767,2]
[366391389,1750228263113,-490.0,0.00016767,2]
[366391390,1750228263122,-490.0,0.00016767,2]
[366391391,1750228263132,-490.0,0.00016767,2]
[366391392,1750228263142,-490.0,0.00016767,2]
[366391393,1750228263152,-490.0,0.00016767,2]
[366391394,1750228263162,-969.56,0.00016767,2]
[366391395,1750228263171,-645.69,0.00016767,2]
[366391396,1750228263180,-490.0,0.00016767,2]
[366391397,1750228263190,-579.87,0.00016767,2]
[366391398,1750228263199,-490.0,0.00016767,2]
[366391399,1750228263209,-490.0,0.00016767,2]
[366391400,1750228263219,-490.0,0.00016767,2]
[366391401,1750228263229,-490.0,0.00016767,2]
[366391402,1750228263239,-620.36,0.00016767,2]
[366391403,1750228263249,-490.0,0.00016767,2]
[366391404,1750228263259,-201.89493759,0.00016767,2]
[366391405,1750228263269,-861.57,0.00016767,2]
[366391406,1750228263279,-490.0,0.00016767,2]
[366391407,1750228263289,-742.97,0.00016767,2]
[366391408,1750228263299,-490.0,0.00016767,2]
[366391409,1750228263308,-490.0,0.00016767,2]
[366391410,1750228263318,-614.64,0.00016767,2]
[366391411,1750228263329,-490.0,0.00016767,2]
[366391412,1750228263339,-467.65035145,0.00016767,2]
[366391413,1750228263348,-469.48112076,0.00016767,2]
[366391414,1750228263358,-490.0,0.00016767,2]
[366391415,1750228263368,-490.0,0.00016767,2]
[366391416,1750228263378,-490.0,0.00016767,2]
[366391417,1750228263388,-490.0,0.00016767,2]
[366391418,1750228263398,-490.0,0.00016767,2]
[366391419,1750228263407,-490.0,0.00016767,2]
[366391420,1750228263417,-490.0,0.00016767,2]
[366391421,1750228263427,-490.0,0.00016767,2]
[366391422,1750228263436,-246.39266234,0.00016767,2]
[366391423,1750228263446,-490.0,0.00016767,2]
[366391424,1750228263457,-490.0,0.00016767,2]
[366391425,1750228263467,-580.19,0.00016767,2]
[366391426,1750228263477,-490.0,0.00016767,2]
[366391427,1750228263487,-490.0,0.00016767,2]
[366391428,1750228263497,-490.0,0.00016767,2]
[366391429,1750228263507,-688.76,0.00016767,2]
[366391430,1750228263517,-490.0,0.00016767,2]
[366391431,1750228263527,-878.94,0.00016767,2]
[366391432,1750228263538,-490.0,0.00016767,2]
[366391433,1750228263548,-490.0,0.00016767,2]
[366391434,1750228263558,-490.0,0.00016767,2]
[366391435,1750228263568,-648.37,0.00016767,2]
[366391436,1750228263578,-490.0,0.00016767,2]
[366391437,1750228263587,-490.0,0.00016767,2]
[366391438,1750228263597,-490.0,0.00016767,2]
[366391439,1750228263607,-490.0,0.00016767,2]
[366391440,1750228263616,-490.0,0.00016767,2]
[366391441,1750228263626,-490.0,0.00016767,2]
[366391442,1750228263636,-490.0,0.00016767,2]
[366391443,1750228263646,-490.0,0.00016767,2]
[366391444,1750228263656,-490.0,0.00016767,2]
[366391445,1750228263666,-490.0,0.00016767,2]
[366391446,1750228263675,-307.21787381,0.00016767,2]
[366391447,1750228263685,-490.0,0.00016767,2]
[366391448,1750228263695,-490.0,0.00016767,2]
[366391449,1750228263704,-512.33,0.00016767,2]
[366391450,1750228263714,-490.0,0.00016767,2]
[366391451,1750228263724,-490.0,0.00016767,2]
[366391452,1750228263734,-490.0,0.00016767,2]
[366391453,1750228263744,-956.13,0.00016767,2]
[366391454,1750228263754,-490.0,0.00016767,2]
[366391455,1750228263764,-490.0,0.00016767,2]
[366391456,1750228263774,-490.0,0.00016767,2]
[366391457,1750228263784,-490.0,0.00016767,2]
[366391458,1750228263794,-490.0,0.00016767,2]
[366391459,1750228263804,-490.0,0.00016767,2]
[366391460,1750228263813,-490.0,0.00016767,2]
[366391461,1750228263823,-490.0,0.00016767,2]
[366391462,1750228263834,-490.0,0.00016767,2]
[366391463,1750228263844,-490.0,0.00016767,2]
[366391464,1750228263854,-490.0,0.00016767,2]
[366391465,1750228263864,-490.0,0.00016767,2]
[366391466,1750228263873,-726.53,0.00016767,2]
[366391467,1750228263883,-490.0,0.00016767,2]
[366391468,1750228263893,-490.0,0.00016767,2]
[366391469,1750228263902,-490.0,0.00016767,2]
[366391470,1750228263912,-490.0,0.00016767,2]
[366391471,1750228263922,-442.76765793,0.00016767,2]
[366391472,1750228263934,-1128.09,0.00016767,2]
[366391473,1750228263946,-490.0,0.00016767,2]
[366391474,1750228263955,-490.0,0.00016767,2]
[366391475,1750228263965,-490.0,0.00016767,2]
[366391476,1750228263975,-490.0,0.00016767,2]
[366391477,1750228263984,-490.0,0.00016767,2]
[366391478,1750228263994,-697.97,0.00016767,2]
[366391479,1750228264316,-757.19,0.00016767,2]
[366391480,1750228264337,-490.0,0.00016767,2]
[366391481,1750228264349,-490.0,0.00016767,2]
[366391482,1750228264359,-490.0,0.00016767,2]
[366391483,1750228264369,-490.0,0.00016767,2]
[366391484,1750228264380,-563.74,0.00016767,2]
[366391485,1750228264390,-490.0,0.00016767,2]
[366391486,1750228264399,-592.11,0.00016767,2]
[366391487,1750228264409,-1295.9,0.00016767,2]
[366391488,1750228264418,-519.41,0.00016767,2]
[366391489,1750228264428,-490.0,0.00016767,2]
[366391490,1750228264438,-490.0,0.00016767,2]
[366391491,1750228264448,-1407.43,0.00016767,2]
[366391492,1750228264458,-490.0,0.00016767,2]
[366391493,1750228264468,-490.0,0.00016767,2]
[366391494,1750228264478,-490.0,0.00016767,2]
[366391495,1750228264488,-801.35,0.00016767,2]
[366391496,1750228264498,-897.75,0.00016767,2]
[366391497,1750228264508,-490.0,0.00016767,2]
[366391498,1750228264518,-490.0,0.00016767,2]
[366391499,1750228264529,-564.16,0.00016767,2]
[366391500,1750228264539,-524.26,0.00016767,2]
[366391501,1750228264549,-490.0,0.00016767,2]
[366391502,1750228264558,-490.0,0.00016767,2]
[366391503,1750228264574,-1565.9,0.00016767,2]
[366391504,1750228264585,-490.0,0.00016767,2]
[366391505,1750228264595,-490.0,0.00016767,2]
[366391506,1750228264605,-901.34,0.00016767,2]
[366391507,1750228264615,-592.18,0.00016767,2]
[366391508,1750228264625,-490.0,0.00016767,2]
[366391509,1750228264635,-490.0,0.00016767,2]
[366391510,1750228264645,-1000.0,0.00016767,2]
[366391511,1750228264656,-490.0,0.00016767,2]
[366391512,1750228264666,-490.0,0.00016767,2]
[366391513,1750228264678,-1143.38,0.00016767,2]
[366391514,1750228264689,-490.0,0.00016767,2]
[366391515,1750228264699,-490.0,0.00016767,2]
[366391516,1750228264710,-890.59,0.00016767,2]
[366391517,1750228264720,-490.0,0.00016767,2]
[366391518,1750228264731,-490.0,0.00016767,2]
[366391519,1750228264743,-490.0,0.00016767,2]
[366391520,1750228264754,-1158.69,0.00016767,2]
[366391521,1750228264765,-490.0,0.00016767,2]
[366391522,1750228264776,-563.05,0.00016767,2]
[366391523,1750228264787,-1200.34,0.00016767,2]
[366391524,1750228264798,-490.0,0.00016767,2]
[366391525,1750228264808,-688.55,0.00016767,2]
[366391526,1750228264819,-1353.23,0.00016767,2]
[366391527,1750228264829,-490.0,0.00016767,2]
[366391528,1750228264839,-1105.26,0.00016767,2]
[366391529,1750228264850,-538.51,0.00016767,2]
[366391530,1750228264860,-490.0,0.00016767,2]
[366391531,1750228264870,-490.0,0.00016767,2]
[366391532,1750228264880,-490.0,0.00016767,2]
[366391533,1750228264891,-1122.3,0.00016767,2]
[366391534,1750228264901,-490.0,0.00016767,2]
[366391535,1750228264911,-490.0,0.00016767,2]
[366391536,1750228264921,-490.0,0.00016767,2]
[366391537,1750228264932,-490.0,0.00016767,2]
[366391538,1750228264944,-490.0,0.00016767,2]
[366391539,1750228264954,-490.0,0.00016767,2]
[366391540,1750228264964,-490.0,0.00016767,2]
[366391541,1750228264975,-490.0,0.00016767,2]
[366391542,1750228264984,-490.0,0.00016767,2]
[366391543,1750228264994,-490.0,0.00016767,2]
[366391544,1750228265004,-490.0,0.00016767,2]
[366391545,1750228265019,-1400.53,0.00016767,2]
[366391546,1750228265030,-611.73,0.00016767,2]
[366391547,1750228265040,-490.0,0.00016767,2]
[366391548,1750228265050,-176.13037013,0.00016767,2]
[366391549,1750228265061,-490.0,0.00016767,2]
[366391550,1750228265070,-490.0,0.00016767,2]
[366391551,1750228265081,-525.85,0.00016767,2]
[366391552,1750228265091,-542.92,0.00016767,2]
[366391553,1750228265101,-783.98,0.00016767,2]
[366391554,1750228265112,-974.44,0.00016767,2]
[366391555,1750228265127,-490.0,0.00016767,2]
[366391556,1750228265137,-580.53,0.00016767,2]
[366391557,1750228265147,-1515.32,0.00016767,2]
[366391558,1750228265157,-1216.73,0.00016767,2]
[366391559,1750228265167,-1263.87,0.00016767,2]
[366391560,1750228265178,-1197.66,0.00016767,2]
[366391561,1750228265188,-629.02,0.00016767,2]
[366391562,1750228265199,-1262.59,0.00016767,2]
[366391563,1750228265209,-648.57,0.00016767,2]
[366391564,1750228265218,-766.61,0.00016767,2]
[366391565,1750228265229,-490.0,0.00016767,2]
[366391566,1750228265239,-1704.7,0.00016767,2]
[366391567,1750228265250,-951.16,0.00016767,2]
[366391568,1750228265260,-490.0,0.00016767,2]
[366391569,1750228265270,-490.0,0.00016767,2]
[366391570,1750228265280,-585.54,0.00016767,2]
[366391571,1750228265291,-1370.21,0.00016767,2]
[366391572,1750228265301,-490.0,0.00016767,2]
[366391573,1750228265311,-1402.84,0.00016767,2]
[366391574,1750228265321,-589.02,0.00016767,2]
[366391575,1750228265331,-1827.76,0.00016767,2]
[366391576,1750228265341,-1044.31,0.00016767,2]
[366391577,1750228265351,-861.52,0.00016767,2]
[366391578,1750228265361,-650.32,0.00016767,2]
[366391579,1750228265371,-490.0,0.00016767,2]
[366391580,1750228265381,-490.0,0.00016767,2]
[366391581,1750228265391,-528.21,0.00016767,2]
[366391582,1750228265401,-490.0,0.00016767,2]
[366391583,1750228265411,-1193.44,0.00016767,2]
[366391584,1750228265421,-490.0,0.00016767,2]
[366391585,1750228265431,-1357.82,0.00016767,2]
[366391586,1750228265442,-492.62,0.00016767,2]
[366391587,1750228265452,-803.54,0.00016767,2]
[366391588,1750228265462,-490.0,0.00016767,2]
[366391589,1750228265473,-490.0,0.00016767,2]
[366391590,1750228265483,-772.08,0.00016767,2]
[366391591,1750228265493,-1187.52,0.00016767,2]
[366391592,1750228265503,-490.0,0.00016767,2]
[366391593,1750228265512,-490.0,0.00016767,2]
[366391594,1750228265522,-490.0,0.00016767,2]
[366391595,1750228265532,-490.0,0.00016767,2]
[366391596,1750228265542,-1256.6,0.00016767,2]
[366391597,1750228265554,-875.18,0.00016767,2]
[366391598,1750228265564,-1169.32,0.00016767,2]
[366391599,1750228265574,-759.5,0.00016767,2]
[366391600,1750228265584,-2010.11,0.00016767,2]
[366391601,1750228265594,-490.0,0.00016767,2]
[366391602,1750228265604,-521.03,0.00016767,2]
[366391603,1750228265614,-645.48,0.00016767,2]
[366391604,1750228265624,-490.0,0.00016767,2]
[366391605,1750228265634,-738.62,0.00016767,2]
[366391606,1750228265643,-490.0,0.00016767,2]
[366391607,1750228265653,-587.6,0.00016767,2]
[366391608,1750228265663,-490.0,0.00016767,2]
[366391609,1750228265673,-1226.95,0.00016767,2]
[366391610,1750228265682,-548.59,0.00016767,2]
[366391611,1750228265692,-557.38,0.00016767,2]
[366391612,1750228265702,-612.2732131,0.00016767,2]
[366391613,1750228265711,-490.0,0.00016767,2]
[366391614,1750228265721,-967.69,0.00016767,2]
[366391615,1750228265730,-910.354394,0.00016767,2]
[366391616,1750228265740,-990.25,0.00016767,2]
[366391617,1750228265750,-490.0,0.00016767,2]
[366391618,1750228265761,-490.0,0.00016767,2]
[366391619,1750228265771,-587.45,0.00016767,2]
[366391620,1750228265781,-490.0,0.00016767,2]
[366391621,1750228265791,-1173.13,0.00016767,2]
[366391622,1750228265802,-769.24,0.00016767,2]
[366391623,1750228265812,-490.0,0.00016767,2]
[366391624,1750228265822,-944.05,0.00016767,2]
[366391625,1750228265833,-561.61,0.00016767,2]
[366391626,1750228265843,-502.20440282,0.00016767,2]
[366391627,1750228265853,-757.49,0.00016767,2]
[366391628,1750228265862,-348.64091862,0.00016767,2]
[366391629,1750228265872,-1608.15,0.00016767,2]
[366391630,1750228265881,-490.0,0.00016767,2]
[366391631,1750228265891,-490.0,0.00016767,2]
[366391632,1750228265901,-1003.59,0.00016767,2]
[366391633,1750228265911,-703.88,0.00016767,2]
[366391634,1750228265920,-580.03,0.00016767,2]
[366391635,1750228265930,-820.87,0.00016767,2]
[366391636,1750228265943,-490.0,0.00016767,2]
[366391637,1750228265953,-490.0,0.00016767,2]
[366391638,1750228265963,-567.22,0.00016767,2]
[366391639,1750228265972,-490.0,0.00016767,2]
[366391640,1750228265982,-1000.34,0.00016767,2]
[366391641,1750228265999,-490.0,0.00016767,2]
[366391642,1750228266013,-757.28,0.00016767,2]
[366391643,1750228266024,-3053.246112,0.00016767,2]
[366391644,1750228266034,-490.0,0.00016767,2]
[366391645,1750228266043,-298.17435014,0.00016767,2]
[366391646,1750228266053,-490.0,0.00016767,2]
[366391647,1750228266064,-1942.63,0.00016767,2]
[366391648,1750228266074,-2841.38,0.00016767,2]
[366391649,1750228266084,-490.0,0.00016767,2]
[366391650,1750228266094,-848.93,0.00016767,2]
[366391651,1750228266104,-490.0,0.00016767,2]
[366391652,1750228266114,-490.0,0.00016767,2]
[366391653,1750228266124,-906.12,0.00016767,2]
[366391654,1750228266133,-490.0,0.00016767,2]
[366391655,1750228266143,-1187.13,0.00016767,2]
[366391656,1750228266153,-597.9,0.00016767,2]
[366391657,1750228266163,-709.03,0.00016767,2]
[366391658,1750228266174,-490.0,0.00016767,2]
[366391659,1750228266184,-2053.51,0.00016767,2]
[366391660,1750228266194,-490.0,0.00016767,2]
[366391661,1750228266204,-202.11632795,0.00016767,2]
[366391662,1750228266215,-781.79,0.00016767,2]
[366391663,1750228266225,-490.0,0.00016767,2]
[366391664,1750228266234,-490.0,0.00016767,2]
[366391665,1750228266244,-528.41,0.00016767,2]
[366391666,1750228266254,-732.44,0.00016767,2]
[366391667,1750228266265,-553.37,0.00016767,2]
[366391668,1750228266276,-1029.71,0.00016767,2]
[366391669,1750228266286,-490.0,0.00016767,2]
[366391670,1750228266295,-490.0,0.00016767,2]
[366391671,1750228266306,-355.01971392,0.00016767,2]
[366391672,1750228266315,-533.39,0.00016767,2]
[366391673,1750228266326,-702.2,0.00016767,2]
[366391674,1750228266337,-467.32361705,0.00016767,2]
[366391675,1750228266346,-490.0,0.00016767,2]
[366391676,1750228266356,-490.0,0.00016767,2]
[366391677,1750228266365,-730.17,0.00016767,2]
[366391678,1750228266374,-490.0,0.00016767,2]
[366391679,1750228266383,-490.0,0.00016767,2]
[366391680,1750228266392,-490.0,0.00016767,2]
[366391681,1750228266402,-546.87,0.00016767,2]
[366391682,1750228266412,-1471.12,0.00016767,2]
[366391683,1750228266422,-490.0,0.00016767,2]
[366391684,1750228266432,-1340.89,0.00016767,2]
[366391685,1750228266442,-2086.97,0.00016767,2]
[366391686,1750228266451,-490.0,0.00016767,2]
[366391687,1750228266461,-665.94,0.00016767,2]
[366391688,1750228266472,-490.0,0.00016767,2]
[366391689,1750228266482,-490.0,0.00016767,2]
[366391690,1750228266493,-685.87,0.00016767,2]
[366391691,1750228266503,-490.0,0.00016767,2]
[366391692,1750228266513,-461.12173743,0.00016767,2]
[366391693,1750228266524,-534.62,0.00016767,2]
[366391694,1750228266534,-763.18,0.00016767,2]
[366391695,1750228266545,-490.0,0.00016767,2]
[366391696,1750228266556,-490.0,0.00016767,2]
[366391697,1750228266566,-490.0,0.00016767,2]
[366391698,1750228266576,-490.0,0.00016767,2]
[366391699,1750228266590,-447.24788218,0.00016767,2]
[366391700,1750228266600,-490.0,0.00016767,2]
[366391701,1750228266610,-2228.96,0.00016767,2]
[366391702,1750228266620,-431.33537977,0.00016767,2]
[366391703,1750228266630,-490.0,0.00016767,2]
[366391704,1750228266640,-490.0,0.00016767,2]
[366391705,1750228266649,-1681.55,0.00016767,2]
[366391706,1750228266660,-709.77,0.00016767,2]
[366391707,1750228266670,-490.0,0.00016767,2]
[366391708,1750228266679,-1536.75,0.00016767,2]
[366391709,1750228266689,-570.79,0.00016767,2]
[366391710,1750228266704,-1834.91,0.00016767,2]
[366391711,1750228266714,-1366.99,0.00016767,2]
[366391712,1750228266724,-594.07,0.00016767,2]
[366391713,1750228266734,-746.85,0.00016767,2]
[366391714,1750228266744,-490.0,0.00016767,2]
[366391715,1750228266754,-1349.21,0.00016767,2]
[366391716,1750228266764,-490.0,0.00016767,2]
[366391717,1750228266774,-1085.53,0.00016767,2]
[366391718,1750228266785,-1198.25,0.00016767,2]
[366391719,1750228266795,-602.22,0.00016767,2]
[366391720,1750228266805,-1324.35,0.00016767,2]
[366391721,1750228267012,-488.27955624,0.00016767,2]
[366391722,1750228267022,-1950.78,0.00016767,2]
[366391723,1750228267031,-631.56,0.00016767,2]
[366391724,1750228267041,-490.0,0.00016767,2]
[366391725,1750228267050,-490.0,0.00016767,2]
[366391726,1750228267060,-2472.57,0.00016767,2]
[366391727,1750228267069,-490.0,0.00016767,2]
[366391728,1750228267078,-1785.85,0.00016767,2]
[366391729,1750228267088,-490.0,0.00016767,2]
[366391730,1750228267098,-490.0,0.00016767,2]
[366391731,1750228267107,-604.04,0.00016767,2]
[366391732,1750228267116,-561.79,0.00016767,2]
[366391733,1750228267126,-1534.27,0.00016767,2]
[366391734,1750228267135,-490.0,0.00016767,2]
[366391735,1750228267145,-490.0,0.00016767,2]
[366391736,1750228267154,-490.0,0.00016767,2]
[366391737,1750228267163,-617.04,0.00016767,2]
[366391738,1750228267173,-1565.84,0.00016767,2]
[366391739,1750228267182,-490.0,0.00016767,2]
[366391740,1750228267191,-2447.45,0.00016767,2]
[366391741,1750228267201,-644.77,0.00016767,2]
[366391742,1750228267210,-799.94,0.00016767,2]
[366391743,1750228267220,-490.0,0.00016767,2]
[366391744,1750228267229,-581.61,0.00016767,2]
[366391745,1750228267240,-490.0,0.00016767,2]
[366391746,1750228267250,-552.49,0.00016767,2]
[366391747,1750228267259,-751.78,0.00016767,2]
[366391748,1750228267268,-1757.44,0.00016767,2]
[366391749,1750228267278,-687.4,0.00016767,2]
[366391750,1750228267287,-490.0,0.00016767,2]
[366391751,1750228267296,-593.86,0.00016767,2]
[366391752,1750228267306,-680.76,0.00016767,2]
[366391753,1750228267315,-688.59,0.00016767,2]
[366391754,1750228267325,-490.0,0.00016767,2]
[366391755,1750228267337,-490.0,0.00016767,2]
[366391756,1750228267347,-490.0,0.00016767,2]
[366391757,1750228267360,-490.0,0.00016767,2]
[366391758,1750228267370,-490.0,0.00016767,2]
[366391759,1750228267381,-1841.51,0.00016767,2]
[366391760,1750228267391,-490.0,0.00016767,2]
[366391761,1750228267400,-1182.93,0.00016767,2]
[366391762,1750228267410,-468.48644296,0.00016767,2]
[366391763,1750228267420,-490.0,0.00016767,2]
[366391764,1750228267430,-502.78,0.00016767,2]
[366391765,1750228267440,-490.0,0.00016767,2]
[366391766,1750228267450,-490.29,0.00016767,2]
[366391767,1750228267461,-2057.82,0.00016767,2]
[366391768,1750228267472,-490.0,0.00016767,2]
[366391769,1750228267482,-490.0,0.00016767,2]
[366391770,1750228267492,-490.0,0.00016767,2]
[366391771,1750228267503,-490.0,0.00016767,2]
[366391772,1750228267512,-490.0,0.00016767,2]
[366391773,1750228267523,-1728.94,0.00016767,2]
[366391774,1750228267534,-490.0,0.00016767,2]
[366391775,1750228267544,-1130.61,0.00016767,2]
[366391776,1750228267554,-602.72,0.00016767,2]
[366391777,1750228267563,-490.0,0.00016767,2]
[366391778,1750228267573,-1211.07,0.00016767,2]
[366391779,1750228267586,-490.0,0.00016767,2]
[366391780,1750228267595,-1039.44,0.00016767,2]
[366391781,1750228267604,-535.02,0.00016767,2]
[366391782,1750228267614,-490.0,0.00016767,2]
[366391783,1750228267624,-632.32,0.00016767,2]
[366391784,1750228267633,-577.22635076,0.00016767,2]
[366391785,1750228267643,-490.0,0.00016767,2]
[366391786,1750228267652,-1450.05,0.00016767,2]
[366391787,1750228267662,-1191.23,0.00016767,2]
[366391788,1750228267672,-658.83,0.00016767,2]
[366391789,1750228267682,-1957.38,0.00016767,2]
[366391790,1750228267691,-490.0,0.00016767,2]
[366391791,1750228267700,-2010.37,0.00016767,2]
[366391792,1750228267710,-1218.56,0.00016767,2]
[366391793,1750228267719,-490.0,0.00016767,2]
[366391794,1750228267728,-490.0,0.00016767,2]
[366391795,1750228267738,-490.0,0.00016767,2]
[366391796,1750228267747,-778.8,0.00016767,2]
[366391797,1750228267757,-873.25,0.00016767,2]
[366391798,1750228267767,-490.0,0.00016767,2]
[366391799,1750228267777,-1297.98,0.00016767,2]
[366391800,1750228267787,-490.0,0.00016767,2]
[366391801,1750228267797,-894.93,0.00016767,2]
[366391802,1750228267806,-490.0,0.00016767,2]
[366391803,1750228267815,-490.0,0.00016767,2]
[366391804,1750228267825,-490.0,0.00016767,2]
[366391805,1750228267837,-490.0,0.00016767,2]
[366391806,1750228267846,-639.62,0.00016767,2]
[366391807,1750228267856,-548.35,0.00016767,2]
[366391808,1750228267865,-490.0,0.00016767,2]
[366391809,1750228267875,-1604.13,0.00016767,2]
[366391810,1750228267885,-668.18,0.00016767,2]
[366391811,1750228267894,-2818.65,0.00016767,2]
[366391812,1750228267904,-2340.71,0.00016767,2]
[366391813,1750228267914,-490.0,0.00016767,2]
[366391814,1750228267924,-708.31,0.00016767,2]
[366391815,1750228267936,-490.0,0.00016767,2]
[366391816,1750228267947,-1354.04,0.00016767,2]
[366391817,1750228267956,-24970.95,0.00016767,2]
[366391818,1750228267965,-1382.74,0.00016767,2]
[366391819,1750228267975,-1285.03,0.00016767,2]
[366391820,1750228267985,-1771.78,0.00016767,2]
[366391821,1750228267994,-2300.13,0.00016767,2]
[366391822,1750228268003,-490.0,0.00016767,2]
[366391823,1750228268013,-490.0,0.00016767,2]
[366391824,1750228268024,-490.0,0.00016767,2]
[366391825,1750228268034,-4919.38,0.00016767,2]
[366391826,1750228268043,-3928.17,0.00016767,2]
[366391827,1750228268052,-701.12,0.00016767,2]
[366391828,1750228268062,-1316.53,0.00016767,2]
[366391829,1750228268071,-490.0,0.00016767,2]
[366391830,1750228268080,-490.0,0.00016767,2]
[366391831,1750228268090,-490.0,0.00016767,2]
[366391832,1750228268100,-904.86,0.00016767,2]
[366391833,1750228268109,-531.77,0.00016767,2]
[366391834,1750228268119,-948.0,0.00016767,2]
[366391835,1750228268128,-5405.55,0.00016767,2]
[366391836,1750228268138,-490.0,0.00016767,2]
[366391837,1750228268147,-2197.97,0.00016767,2]
[366391838,1750228268156,-4650.41,0.00016767,2]